fUST/lending_fUST_20240115
["ID","MTS","AMOUNT","RATE_DAILY","PERIOD"]
[311591682,1705258241778,-1368.15,0.00027397,2]
[311591683,1705258241788,-500.0,0.00027397,2]
[311591684,1705258241797,-540.84,0.00027397,2]
[311591685,1705258241806,-500.0,0.00027397,2]
[311591686,1705258241815,-544.96071145,0.00027397,2]
[311591687,1705258241824,-519.48,0.00027397,2]
[311591688,1705258241834,-699.57,0.00027397,2]
[311591689,1705258241843,-595.16,0.00027397,2]
[311591690,1705258241852,-254.15774864,0.00027397,2]
[311591691,1705258241861,-500.0,0.00027397,2]
[311591692,1705258241870,-507.87823536,0.00027397,2]
[311591693,1705258241879,-500.0,0.00027397,2]
[311591694,1705258241888,-500.0,0.00027397,2]
[311591695,1705258241898,-500.0,0.00027397,2]
[311591696,1705258241908,-508.13856034,0.00027397,2]
[311591697,1705258241919,-540.33986013,0.00027397,2]
[311591698,1705258241929,-500.0,0.00027397,2]
[311591699,1705258241938,-500.0,0.00027397,2]
[311591700,1705258241948,-500.0,0.00027397,2]
[311591701,1705258241958,-502.98322242,0.00027397,2]
[311591702,1705258241967,-500.0,0.00027397,2]
[311591703,1705258241976,-500.0,0.00027397,2]
[311591704,1705258241986,-500.0,0.00027397,2]
[311591705,1705258241995,-500.0,0.00027397,2]
[311591706,1705258242005,-1539.25,0.00027397,2]
[311591707,1705258242014,-500.0,0.00027397,2]
[311591708,1705258242024,-500.0,0.00027397,2]
[311591709,1705258242033,-500.0,0.00027397,2]
[311591710,1705258242042,-500.0,0.00027397,2]
[311591711,1705258242051,-908.67,0.00027397,2]
[311591712,1705258242060,-500.0,0.00027397,2]
[311591713,1705258242069,-618.71,0.00027397,2]
[311591714,1705258242079,-500.0,0.00027397,2]
[311591715,1705258242089,-500.0,0.00027397,2]
[311591716,1705258242102,-507.25393462,0.00027397,2]
[311591717,1705258242110,-500.0,0.00027397,2]
[311591718,1705258242120,-500.0,0.00027397,2]
[311591719,1705258242130,-500.0,0.00027397,2]
[311591720,1705258242139,-500.0,0.00027397,2]
[311591721,1705258242149,-882.22,0.00027397,2]
[311591722,1705258242158,-500.0,0.00027397,2]
[311591723,1705258242168,-200.17824159,0.00027397,2]
[311591724,1705258242177,-500.0,0.00027397,2]
[311591725,1705258242186,-500.0,0.00027397,2]
[311591726,1705258242195,-500.0,0.00027397,2]
[311591727,1705258242210,-500.0,0.00027397,2]
[311591728,1705258242224,-1257.14,0.00027397,2]
[311591729,1705258242236,-500.0,0.00027397,2]
[311591730,1705258242250,-500.0,0.00027397,2]
[311591731,1705258242261,-500.0,0.00027397,2]
[311591732,1705258242271,-500.0,0.00027397,2]
[311591733,1705258242284,-500.0,0.00027397,2]
[311591734,1705258242296,-500.0,0.00027397,2]
[311591735,1705258242309,-500.0,0.00027397,2]
[311591736,1705258242322,-500.0,0.00027397,2]
[311591737,1705258242335,-500.0,0.00027397,2]
[311591738,1705258242348,-500.0,0.00027397,2]
[311591739,1705258242359,-500.0,0.00027397,2]
[311591740,1705258242371,-500.0,0.00027397,2]
[311591741,1705258242384,-500.0,0.00027397,2]
[311591742,1705258242396,-66.96825504,0.00027397,2]
[311591743,1705258242413,-324.35174496,0.00027397,2]
[311591744,1705258242426,-500.0,0.00027397,2]
[311591745,1705258242438,-452.0982146,0.00027397,2]
[311591746,1705258242450,-500.0,0.00027397,2]
[311591747,1705258242463,-519.46116191,0.00027397,2]
[311591748,1705258242476,-500.0,0.00027397,2]
[311591749,1705258242486,-1523.4,0.00027397,2]
[311591750,1705258242496,-500.0,0.00027397,2]
[311591751,1705258242510,-500.0,0.00027397,2]
[311591752,1705258242523,-500.0,0.00027397,2]
[311591753,1705258242535,-2906.65,0.00027397,2]
[311591754,1705258242548,-500.0,0.00027397,2]
[311591755,1705258242559,-500.0,0.00027397,2]
[311591756,1705258242570,-296.42767224,0.00027397,2]
[311591757,1705258242582,-342.69292137,0.00027397,2]
[311591758,1705258242598,-157.30707863,0.00027397,2]
[311591759,1705258242611,-500.0,0.00027397,2]
[311591760,1705258242624,-500.0,0.00027397,2]
[311591761,1705258242636,-500.0,0.00027397,2]
[311591762,1705258242649,-500.0,0.00027397,2]
[311591763,1705258242663,-500.0,0.00027397,2]
[311591765,1705258242673,-500.0,0.00027397,2]
[311591766,1705258242683,-500.0,0.00027397,2]
[311591767,1705258242693,-252.07540948,0.00027397,2]
[311591769,1705258242703,-500.0,0.00027397,2]
[311591771,1705258242713,-500.0,0.00027397,2]
[311591773,1705258242724,-500.0,0.00027397,2]
[311591775,1705258242735,-500.0,0.00027397,2]
[311591776,1705258242747,-485.09828248,0.00027397,2]
[311591777,1705258242764,-329.62171752,0.00027397,2]
[311591779,1705258242777,-500.0,0.00027397,2]
[311591780,1705258242787,-155.0,0.00027397,2]
[311591781,1705258242798,-500.0,0.00027397,2]
[311591782,1705258242808,-700.78,0.00027397,2]
[311591783,1705258242819,-500.0,0.00027397,2]
[311591784,1705258242831,-531.88738807,0.00027397,2]
[311591785,1705258242842,-388.98809466,0.00027397,2]
[311591786,1705258243163,-111.01190534,0.00027397,2]
[311591787,1705258243174,-500.0,0.00027397,2]
[311591788,1705258243186,-500.0,0.00027397,2]
[311591789,1705258243196,-628.49457339,0.00027397,2]
[311591790,1705258243207,-500.0,0.00027397,2]
[311591791,1705258243218,-1396.71,0.00027397,2]
[311591792,1705258243229,-500.0,0.00027397,2]
[311591793,1705258243240,-524.05,0.00027397,2]
[311591794,1705258243251,-500.0,0.00027397,2]
[311591795,1705258243262,-500.0,0.00027397,2]
[311591796,1705258243273,-495.43129305,0.00027397,2]
[311591797,1705258243283,-1478.45,0.00027397,2]
[311591798,1705258243294,-500.0,0.00027397,2]
[311591799,1705258243305,-500.0,0.00027397,2]
[311591800,1705258243316,-1939.01160538,0.00027397,2]
[311591801,1705258243330,-4651.53419478,0.00027397,2]
[311591835,1705258465624,4005.39956635,0.00021,2]
[311591839,1705258509480,1274.40351652,0.00021,2]
[311591840,1705258525403,1274.40351652,0.00021,2]
[311591841,1705258543422,217.63735432,0.00021,2]
[311591842,1705258563240,397.07109141,0.00021,2]
[311591975,1705259438394,-861.30824121,0.00024511,2]
[311591976,1705259438403,-1985.5364354,0.00024512,2]
[311591977,1705259438412,-155.0,0.00024513,2]
[311591978,1705259438421,-156.97486621,0.00024513,2]
[311591979,1705259438430,-902.188306,0.00024513,2]
[311591980,1705259438439,-178.64010983,0.00024514,2]
[311591981,1705259438448,-155.0,0.00024514,4]
[311591982,1705259438457,-3945.5094445,0.00024514,2]
[311591983,1705259438466,-166.666666,0.00024533,2]
[311591984,1705259438475,-864.44948935,0.0002508,2]
[311591985,1705259438484,-166.666666,0.00025202,2]
[311591986,1705259438493,-363.29573547,0.00025297,2]
[311591987,1705259438594,-166.666666,0.0002587,2]
[311591988,1705259438603,-496.879336,0.00026025,5]
[311591989,1705259438612,-632.22247447,0.00026334,2]
[311591990,1705259438620,-166.666666,0.00026539,2]
[311591991,1705259438629,-397.6179268,0.00026849,2]
[311591992,1705259438638,-469.94797818,0.0002686,2]
[311591993,1705259438647,-155.22438348,0.0002686,2]
[311591994,1705259438656,-211.45829827,0.0002686,2]
[311591995,1705259438665,-174.92184312,0.0002686,2]
[311591996,1705259438674,-285.07735822,0.0002686,2]
[311591997,1705259438683,-223.96899239,0.0002686,2]
[311591998,1705259438692,-632.85253942,0.0002686,2]
[311591999,1705259438700,-2035.15445086,0.0002686,2]
[311592000,1705259438709,-587.05108958,0.0002686,2]
[311592001,1705259438718,-15885.90268571,0.0002686,2]
[311592002,1705259438728,-525.22363698,0.0002686,2]
[311592003,1705259438737,-449.77827105,0.0002686,2]
[311592004,1705259438746,-155.24251227,0.0002686,2]
[311592005,1705259438755,-1633.37370509,0.00026861,2]
[311592006,1705259438764,-50000.0,0.00026862,2]
[311592007,1705259438773,-289.5463958,0.00027,2]
[311592008,1705259438782,-460.9594683,0.00027,2]
[311592009,1705259438791,-166.666666,0.00027208,2]
[311592010,1705259438801,-154.84515485,0.0002726,2]
[311592011,1705259438809,-160.17843978,0.00027296,2]
[311592012,1705259438819,-769.67896361,0.00027395,2]
[311592013,1705259438828,-7143.76073287,0.00027395,2]
[311592014,1705259438837,-2639.8798987,0.00027395,2]
[311592015,1705259438846,-1511.65618468,0.00027395,2]
[311592016,1705259438856,-253.55669293,0.00027395,2]
[311592017,1705259438865,-207.44196009,0.00027395,2]
[311592018,1705259438874,-451.68480843,0.00027395,2]
[311592019,1705259438883,-481.48132679,0.00027395,2]
[311592020,1705259438893,-212.96062918,0.00027395,2]
[311592021,1705259438903,-309.82961307,0.00027395,2]
[311592023,1705259438912,-642.93704766,0.00027395,2]
[311592025,1705259438922,-238.73028928,0.00027395,2]
[311592027,1705259438931,-686.56873039,0.00027395,2]
[311592029,1705259438940,-295.58091467,0.00027395,2]
[311592031,1705259438950,-4712.57883465,0.00027395,2]
[311592033,1705259438959,-272.97998012,0.00027396,2]
[311592036,1705259438972,-156.35116731,0.00027396,2]
[311592038,1705259438982,-225.81004491,0.00027396,2]
[311592039,1705259438991,-466.44337253,0.00027396,2]
[311592041,1705259439001,-4848.26015958,0.00027396,2]
[311592043,1705259439010,-500.0,0.00027396,2]
[311592045,1705259439019,-500.0,0.00027396,2]
[311592048,1705259439028,-500.0,0.00027396,2]
[311592050,1705259439050,-500.0,0.00027396,2]
[311592053,1705259439060,-500.0,0.00027396,2]
[311592055,1705259439070,-502.11934106,0.00027396,2]
[311592057,1705259439080,-500.0,0.00027396,2]
[311592059,1705259439090,-500.0,0.00027396,2]
[311592061,1705259439099,-328.40839929,0.00027396,2]
[311592063,1705259439109,-167.17792121,0.00027396,2]
[311592064,1705259439119,-187.24563082,0.00027396,2]
[311592066,1705259439129,-290.27136166,0.00027396,2]
[311592068,1705259439139,-500.0,0.00027396,2]
[311592070,1705259439149,-500.0,0.00027396,2]
[311592073,1705259439158,-500.0,0.00027396,2]
[311592075,1705259439168,-500.0,0.00027396,2]
[311592077,1705259439182,-500.0,0.00027396,2]
[311592078,1705259439218,-500.0,0.00027396,2]
[311592081,1705259439228,-500.0,0.00027396,2]
[311592083,1705259439237,-500.0,0.00027396,2]
[311592085,1705259439247,-500.0,0.00027396,2]
[311592087,1705259439257,-500.0,0.00027396,2]
[311592089,1705259439267,-353.58831629,0.00027396,2]
[311592091,1705259439277,-500.0,0.00027396,2]
[311592093,1705259439286,-242.76504275,0.00027396,2]
[311592095,1705259439296,-421.43372205,0.00027396,2]
[311592097,1705259439306,-467.33484908,0.00027396,2]
[311592098,1705259439316,-177.47927265,0.00027396,2]
[311592100,1705259439326,-496.52861503,0.00027396,2]
[311592101,1705259439335,-482.95413341,0.00027396,2]
[311592102,1705259439345,-401.36544958,0.00027396,2]
[311592105,1705259439356,-437.5727405,0.00027396,2]
[311592107,1705259439366,-409.04908969,0.00027396,2]
[311592108,1705259439376,-160.54617982,0.00027396,2]
[311592110,1705259439385,-215.600695,0.00027397,2]
[311592112,1705259439395,-3019.600149,0.00027397,2]
[311592114,1705259439405,-3019.600149,0.00027397,2]
[311592116,1705259439415,-504.19080815,0.00027397,2]
[311592118,1705259439424,-500.0,0.00027397,2]
[311592119,1705259439434,-500.0,0.00027397,2]
[311592120,1705259439443,-500.0,0.00027397,2]
[311592122,1705259439453,-268.46914433,0.00027397,2]
[311592124,1705259439462,-507.71507767,0.00027397,2]
[311592125,1705259439472,-349.82002498,0.00027397,2]
[311592126,1705259439482,-500.0,0.00027397,2]
[311592127,1705259439492,-500.0,0.00027397,2]
[311592128,1705259439502,-500.0,0.00027397,2]
[311592129,1705259439511,-543.83676773,0.00027397,2]
[311592130,1705259439521,-221.70878892,0.00027397,2]
[311592131,1705259439531,-565.50137611,0.00027397,2]
[311592132,1705259439543,-500.0,0.00027397,2]
[311592133,1705259439559,-538.42213819,0.00027397,2]
[311592134,1705259439570,-500.0,0.00027397,2]
[311592135,1705259439580,-500.0,0.00027397,2]
[311592136,1705259439590,-550.06570778,0.00027397,2]
[311592137,1705259439600,-500.0,0.00027397,2]
[311592138,1705259439610,-500.0,0.00027397,2]
[311592139,1705259439620,-500.0,0.00027397,2]
[311592140,1705259439630,-200.0,0.00027397,2]
[311592141,1705259439639,-350.0,0.00027397,2]
[311592142,1705259439649,-500.0,0.00027397,2]
[311592143,1705259439659,-500.0,0.00027397,2]
[311592144,1705259439668,-500.0,0.00027397,2]
[311592145,1705259439677,-674.27,0.00027397,2]
[311592146,1705259439687,-500.0,0.00027397,2]
[311592147,1705259439696,-500.0,0.00027397,2]
[311592148,1705259439706,-500.0,0.00027397,2]
[311592149,1705259439715,-500.0,0.00027397,2]
[311592150,1705259439724,-500.0,0.00027397,2]
[311592151,1705259439734,-500.0,0.00027397,2]
[311592152,1705259439743,-500.0,0.00027397,2]
[311592153,1705259439753,-512.66668564,0.00027397,2]
[311592154,1705259439762,-500.0,0.00027397,2]
[311592155,1705259439772,-500.0,0.00027397,2]
[311592156,1705259439781,-500.0,0.00027397,2]
[311592157,1705259439792,-500.0,0.00027397,2]
[311592158,1705259439802,-597.93975768,0.00027397,2]
[311592159,1705259439811,-500.0,0.00027397,2]
[311592160,1705259439820,-1000.0,0.00027397,2]
[311592161,1705259439830,-500.0,0.00027397,2]
[311592162,1705259439840,-500.0,0.00027397,2]
[311592163,1705259439849,-506.77755744,0.00027397,2]
[311592164,1705259439859,-500.0,0.00027397,2]
[311592165,1705259439869,-500.0,0.00027397,2]
[311592166,1705259439878,-154.8915759,0.00027397,2]
[311592167,1705259439888,-614.17691593,0.00027397,2]
[311592168,1705259439897,-500.0,0.00027397,2]
[311592169,1705259439907,-500.0,0.00027397,2]
[311592170,1705259439917,-597.80011119,0.00027397,2]
[311592171,1705259439926,-500.0,0.00027397,2]
[311592172,1705259439936,-500.0,0.00027397,2]
[311592173,1705259439945,-500.0,0.00027397,2]
[311592174,1705259439955,-500.0,0.00027397,2]
[311592175,1705259439964,-500.0,0.00027397,2]
[311592176,1705259439974,-500.0,0.00027397,2]
[311592177,1705259439984,-500.40980905,0.00027397,2]
[311592178,1705259439993,-500.0,0.00027397,2]
[311592179,1705259440002,-500.0,0.00027397,2]
[311592180,1705259440012,-2049.77,0.00027397,2]
[311592181,1705259440022,-500.0,0.00027397,2]
[311592182,1705259440031,-500.0,0.00027397,2]
[311592183,1705259440041,-500.0,0.00027397,2]
[311592184,1705259440050,-500.0,0.00027397,2]
[311592185,1705259440060,-500.0,0.00027397,2]
[311592186,1705259440069,-500.0,0.00027397,2]
[311592187,1705259440079,-500.0,0.00027397,2]
[311592188,1705259440088,-521.55046774,0.00027397,2]
[311592189,1705259440098,-500.0,0.00027397,2]
[311592190,1705259440108,-3596.16,0.00027397,2]
[311592191,1705259440118,-500.0,0.00027397,2]
[311592192,1705259440127,-500.0,0.00027397,2]
[311592193,1705259440137,-500.0,0.00027397,2]
[311592194,1705259440147,-500.0,0.00027397,2]
[311592195,1705259440156,-459.31432045,0.00027397,2]
[311592196,1705259440166,-537.38332628,0.00027397,2]
[311592197,1705259440175,-614.50021481,0.00027397,2]
[311592198,1705259440184,-500.0,0.00027397,2]
[311592199,1705259440194,-500.0,0.00027397,2]
[311592200,1705259440203,-1704.29,0.00027397,2]
[311592201,1705259440213,-428.8409721,0.00027397,2]
[311592202,1705259440223,-500.0,0.00027397,2]
[311592203,1705259440233,-500.0,0.00027397,2]
[311592204,1705259440243,-531.03698778,0.00027397,2]
[311592205,1705259440252,-500.0,0.00027397,2]
[311592206,1705259440262,-300.3557366,0.00027397,2]
[311592207,1705259440271,-522.20027659,0.00027397,2]
[311592208,1705259440367,-1016.15,0.00027397,2]
[311592209,1705259440377,-245.26060203,0.00027397,2]
[311592210,1705259440387,-500.0,0.00027397,2]
[311592211,1705259440396,-500.0,0.00027397,2]
[311592212,1705259440405,-521.31402566,0.00027397,2]
[311592214,1705259440414,-500.32041924,0.00027397,2]
[311592216,1705259440425,-535.12,0.00027397,2]
[311592217,1705259440434,-527.81872152,0.00027397,2]
[311592218,1705259440445,-500.94968003,0.00027397,2]
[311592219,1705259440454,-500.0,0.00027397,2]
[311592220,1705259440463,-500.0,0.00027397,2]
[311592221,1705259440472,-1146.21,0.00027397,2]
[311592222,1705259440482,-500.0,0.00027397,2]
[311592223,1705259440490,-804.67,0.00027397,2]
[311592224,1705259440500,-500.0,0.00027397,2]
[311592225,1705259440510,-500.0,0.00027397,2]
[311592226,1705259440519,-500.0,0.00027397,2]
[311592227,1705259440529,-500.0,0.00027397,2]
[311592228,1705259440544,-500.0,0.00027397,2]
[311592229,1705259440553,-500.0,0.00027397,2]
[311592230,1705259440562,-508.37912011,0.00027397,2]
[311592231,1705259440571,-500.0,0.00027397,2]
[311592232,1705259440581,-500.0,0.00027397,2]
[311592233,1705259440591,-195.5449066,0.00027397,2]
[311592234,1705259440602,-863.73,0.00027397,2]
[311592235,1705259440612,-472.51850201,0.00027397,2]
[311592236,1705259440622,-500.0,0.00027397,2]
[311592237,1705259440631,-503.79077812,0.00027397,2]
[311592238,1705259440641,-500.0,0.00027397,2]
[311592239,1705259440650,-500.0,0.00027397,2]
[311592240,1705259440659,-500.0,0.00027397,2]
[311592241,1705259440668,-500.0,0.00027397,2]
[311592242,1705259440677,-500.0,0.00027397,2]
[311592243,1705259440686,-500.0,0.00027397,2]
[311592244,1705259440695,-500.0,0.00027397,2]
[311592245,1705259440704,-500.0,0.00027397,2]
[311592246,1705259440714,-500.0,0.00027397,2]
[311592247,1705259440723,-500.0,0.00027397,2]
[311592248,1705259440733,-248.67799791,0.00027397,2]
[311592249,1705259440744,-500.0,0.00027397,2]
[311592250,1705259440753,-500.0,0.00027397,2]
[311592251,1705259440762,-500.0,0.00027397,2]
[311592252,1705259440771,-500.0,0.00027397,2]
[311592253,1705259440780,-500.0,0.00027397,2]
[311592255,1705259440789,-500.0,0.00027397,2]
[311592256,1705259440799,-500.0,0.00027397,2]
[311592257,1705259440809,-500.0,0.00027397,2]
[311592258,1705259440818,-361.75049245,0.00027397,2]
[311592259,1705259440826,-968.29,0.00027397,2]
[311592260,1705259440835,-500.0,0.00027397,2]
[311592261,1705259440845,-500.0,0.00027397,2]
[311592262,1705259440854,-504.4552916,0.00027397,2]
[311592263,1705259440863,-500.0,0.00027397,2]
[311592264,1705259440872,-502.5188286,0.00027397,2]
[311592265,1705259440882,-500.0,0.00027397,2]
[311592266,1705259440891,-500.0,0.00027397,2]
[311592267,1705259440900,-301.68649105,0.00027397,2]
[311592268,1705259440910,-500.0,0.00027397,2]
[311592269,1705259440919,-2032.25,0.00027397,2]
[311592270,1705259440928,-621.30815184,0.00027397,2]
[311592271,1705259440937,-501.0410312,0.00027397,2]
[311592272,1705259440946,-500.0,0.00027397,2]
[311592273,1705259440955,-500.0,0.00027397,2]
[311592274,1705259440964,-500.0,0.00027397,2]
[311592275,1705259440974,-500.0,0.00027397,2]
[311592276,1705259440983,-500.0,0.00027397,2]
[311592277,1705259440992,-566.43077222,0.00027397,2]
[311592278,1705259441002,-502.42959231,0.00027397,2]
[311592279,1705259441011,-401.11191083,0.00027397,2]
[311592280,1705259441020,-500.0,0.00027397,2]
[311592281,1705259441030,-1669.66,0.00027397,2]
[311592282,1705259441039,-500.0,0.00027397,2]
[311592283,1705259441048,-500.0,0.00027397,2]
[311592284,1705259441057,-1492.53,0.00027397,2]
[311592285,1705259441067,-500.0,0.00027397,2]
[311592286,1705259441077,-383.49442707,0.00027397,2]
[311592287,1705259441086,-500.0,0.00027397,2]
[311592288,1705259441095,-500.0,0.00027397,2]
[311592289,1705259441105,-500.0,0.00027397,2]
[311592290,1705259441114,-500.0,0.00027397,2]
[311592291,1705259441123,-500.0,0.00027397,2]
[311592292,1705259441132,-634.6,0.00027397,2]
[311592293,1705259441141,-500.0,0.00027397,2]
[311592294,1705259441150,-570.69,0.00027397,2]
[311592295,1705259441159,-500.0,0.00027397,2]
[311592296,1705259441168,-500.0,0.00027397,2]
[311592297,1705259441177,-500.0,0.00027397,2]
[311592298,1705259441186,-500.0,0.00027397,2]
[311592299,1705259441196,-500.0,0.00027397,2]
[311592300,1705259441206,-500.0,0.00027397,2]
[311592301,1705259441216,-500.0,0.00027397,2]
[311592302,1705259441227,-500.0,0.00027397,2]
[311592303,1705259441237,-500.0,0.00027397,2]
[311592304,1705259441247,-500.0,0.00027397,2]
[311592305,1705259441256,-1022.6,0.00027397,2]
[311592306,1705259441265,-500.0,0.00027397,2]
[311592307,1705259441274,-500.0,0.00027397,2]
[311592308,1705259441283,-529.07208491,0.00027397,2]
[311592309,1705259441292,-505.41,0.00027397,2]
[311592310,1705259441301,-500.0,0.00027397,2]
[311592311,1705259441310,-500.0,0.00027397,2]
[311592312,1705259441318,-500.0,0.00027397,2]
[311592313,1705259441328,-500.0,0.00027397,2]
[311592314,1705259441337,-500.0,0.00027397,2]
[311592315,1705259441346,-500.0,0.00027397,2]
[311592316,1705259441355,-500.0,0.00027397,2]
[311592317,1705259441364,-500.0,0.00027397,2]
[311592318,1705259441373,-500.0,0.00027397,2]
[311592319,1705259441382,-374.22929434,0.00027397,2]
[311592320,1705259441391,-493.90003531,0.00027397,2]
[311592321,1705259441401,-500.0,0.00027397,2]
[311592322,1705259441410,-500.0,0.00027397,2]
[311592323,1705259441419,-500.0,0.00027397,2]
[311592324,1705259441429,-500.0,0.00027397,2]
[311592326,1705259441438,-500.0,0.00027397,2]
[311592327,1705259441447,-1099.53,0.00027397,2]
[311592328,1705259441457,-500.0,0.00027397,2]
[311592329,1705259441466,-500.0,0.00027397,2]
[311592330,1705259441474,-500.0,0.00027397,2]
[311592331,1705259441484,-500.0,0.00027397,2]
[311592332,1705259441493,-500.0,0.00027397,2]
[311592333,1705259441502,-3746.8,0.00027397,2]
[311592334,1705259441511,-1000.0,0.00027397,2]
[311592335,1705259441520,-500.0,0.00027397,2]
[311592336,1705259441529,-500.0,0.00027397,2]
[311592337,1705259441542,-500.0,0.00027397,2]
[311592338,1705259441551,-397.00517812,0.00027397,2]
[311592339,1705259441560,-500.0,0.00027397,2]
[311592340,1705259441569,-500.0,0.00027397,2]
[311592341,1705259441578,-500.0,0.00027397,2]
[311592342,1705259441586,-500.0,0.00027397,2]
[311592343,1705259441595,-500.0,0.00027397,2]
[311592344,1705259441604,-500.0,0.00027397,2]
[311592345,1705259441613,-500.0,0.00027397,2]
[311592346,1705259441623,-500.0,0.00027397,2]
[311592347,1705259441632,-166.15850986,0.00027397,2]
[311592348,1705259441641,-500.0,0.00027397,2]
[311592349,1705259441650,-500.0,0.00027397,2]
[311592350,1705259441659,-500.0,0.00027397,2]
[311592351,1705259441668,-501.06284835,0.00027397,2]
[311592352,1705259441677,-500.0,0.00027397,2]
[311592353,1705259441687,-500.0,0.00027397,2]
[311592354,1705259441696,-1508.59,0.00027397,2]
[311592355,1705259441705,-500.0,0.00027397,2]
[311592356,1705259441715,-500.0,0.00027397,2]
[311592357,1705259441725,-500.0,0.00027397,2]
[311592358,1705259441735,-500.0,0.00027397,2]
[311592359,1705259441744,-652.82,0.00027397,2]
[311592360,1705259441753,-500.0,0.00027397,2]
[311592361,1705259441762,-500.0,0.00027397,2]
[311592362,1705259441770,-500.0,0.00027397,2]
[311592363,1705259441779,-500.0,0.00027397,2]
[311592364,1705259441788,-500.0,0.00027397,2]
[311592365,1705259441797,-500.0,0.00027397,2]
[311592366,1705259441806,-500.0,0.00027397,2]
[311592367,1705259441815,-500.0,0.00027397,2]
[311592368,1705259441824,-500.0,0.00027397,2]
[311592369,1705259441834,-155.0,0.00027397,2]
[311592370,1705259441903,-500.0,0.00027397,2]
[311592371,1705259441919,-500.0,0.00027397,2]
[311592372,1705259441928,-500.0,0.00027397,2]
[311592373,1705259441937,-502.64855068,0.00027397,2]
[311592374,1705259441946,-500.0,0.00027397,2]
[311592375,1705259441956,-348.3818456,0.00027397,2]
[311592376,1705259441965,-500.0,0.00027397,2]
[311592377,1705259441974,-500.0,0.00027397,2]
[311592378,1705259441984,-1927.39,0.00027397,2]
[311592379,1705259441994,-1775.11,0.00027397,2]
[311592380,1705259442003,-500.0,0.00027397,2]
[311592381,1705259442013,-500.0,0.00027397,2]
[311592382,1705259442022,-500.0,0.00027397,2]
[311592383,1705259442032,-587.53,0.00027397,2]
[311592384,1705259442041,-500.0,0.00027397,2]
[311592385,1705259442050,-500.0,0.00027397,2]
[311592386,1705259442060,-500.0,0.00027397,2]
[311592387,1705259442069,-500.0,0.00027397,2]
[311592388,1705259442078,-500.0,0.00027397,2]
[311592389,1705259442088,-500.0,0.00027397,2]
[311592390,1705259442097,-500.0,0.00027397,2]
[311592391,1705259442106,-9796.43,0.00027397,2]
[311592392,1705259442116,-500.01851534,0.00027397,2]
[311592393,1705259442125,-2057.53,0.00027397,2]
[311592394,1705259442134,-500.0,0.00027397,2]
[311592395,1705259442143,-1530.23,0.00027397,2]
[311592396,1705259442152,-500.0,0.00027397,2]
[311592397,1705259442161,-500.0,0.00027397,2]
[311592398,1705259442170,-500.0,0.00027397,2]
[311592399,1705259442179,-902.1,0.00027397,2]
[311592400,1705259442189,-500.0,0.00027397,2]
[311592401,1705259442197,-11444.19,0.00027397,2]
[311592402,1705259442206,-500.0,0.00027397,2]
[311592403,1705259442216,-500.0,0.00027397,2]
[311592404,1705259442225,-500.0,0.00027397,2]
[311592405,1705259442235,-500.0,0.00027397,2]
[311592406,1705259442245,-1143.52,0.00027397,2]
[311592407,1705259442254,-500.0,0.00027397,2]
[311592408,1705259442264,-500.0,0.00027397,2]
[311592409,1705259442273,-500.0,0.00027397,2]